bitfinex/quotes_ETHUSD_20250220
["timestamp","ask_amount","ask_price","bid_price","bid_amount"]
[1740079266437,4.41785,2763.0,2762.2,3.37691294]
[1740079266600,0.7986,2763.0,2762.2,0.288]
[1740079266804,0.7986,2763.0,2762.6,3.61967]
[1740079267017,0.55,2763.2,2762.4,7.850725]
[1740079267218,3.6192,2763.1,2762.5,3.6199]
[1740079267436,4.169,2763.2,2762.6,3.61969]
[1740079267638,0.55,2763.2,2762.6,3.61969]
[1740079267929,3.61972,2762.7,2762.2,0.288]
[1740079268130,3.61999,2762.5,2762.1,0.288]
[1740079268934,3.62003,2762.5,2762.1,0.288]
[1740079269148,3.62012,2762.4,2762.1,0.288]
[1740079269349,3.62052,2762.1,2761.6,5.42534631]
[1740079269505,3.62035,2762.2,2761.7,3.62092]
[1740079269705,3.62035,2762.2,2761.6,7.63347544]
[1740079269929,3.62035,2762.2,2761.7,1.29034754]
[1740079270138,3.62004,2762.4,2761.6,1.80430631]
[1740079270341,4.38379,2762.0,2761.6,0.73650631]
[1740079270709,3.6207,2761.9,2761.6,0.73650631]
[1740079271237,4.38379,2762.0,2761.6,0.73650631]
[1740079271442,3.62075,2761.9,2761.6,0.73650631]
[1740079271821,3.62089,2761.8,2761.6,0.73650631]
[1740079272137,3.62089,2761.8,2761.3,4.230735]
[1740079272317,3.62089,2761.8,2761.3,5.4842955]
[1740079272725,3.62089,2761.8,2761.3,9.1057455]
[1740079272932,4.38374,2762.0,2761.4,3.62132]
[1740079273242,3.62077,2761.9,2761.4,3.62132]
[1740079273443,3.62085,2761.8,2761.3,1.2535605]
[1740079273642,3.62077,2761.9,2761.4,3.62127]
[1740079274027,3.6211,2761.6,2761.2,0.73392299]
[1740079274232,3.62097,2761.7,2761.2,0.73392299]
[1740079274635,3.62099,2761.7,2761.2,0.73392299]
[1740079274864,7.24205,2761.7,2761.2,1.59255279]
[1740079275038,3.6211,2761.6,2761.2,1.59255279]
[1740079275208,3.62132,2761.5,2761.2,0.73392299]
[1740079275413,3.62148,2761.3,2761.2,0.73392299]
[1740079275608,3.6217,2761.2,2760.7,3.90924]
[1740079276126,3.62148,2761.3,2760.7,3.90924]
[1740079276322,0.7918,2761.4,2760.8,0.469104]
[1740079276522,3.62183,2761.1,2760.7,0.287]
[1740079277260,3.62183,2761.1,2760.5,3.62253]
[1740079277669,3.62183,2761.1,2760.6,3.62229]
[1740079278413,4.17155,2761.3,2760.5,3.62253]
[1740079278646,6.1518,2761.4,2760.8,3.62213]
[1740079278847,5.36,2761.4,2761.2,3.62151]
[1740079279077,5.36,2761.4,2761.0,3.62175]
[1740079279781,5.36,2761.4,2760.9,3.622]
[1740079280184,8.98145,2761.4,2760.9,3.622]
[1740079280480,4.1717,2761.2,2760.6,4.4076465]
[1740079280777,3.62174,2761.1,2760.6,4.4076465]
[1740079281179,4.99658,2761.0,2760.2,3.90983]
[1740079281478,3.6222,2760.8,2760.3,3.62273]
[1740079281983,4.99666,2761.0,2760.4,3.62265]
[1740079282154,0.8247,2761.0,2760.6,3.62228]
[1740079282358,0.8247,2761.3,2760.4,0.362265]
[1740079282564,0.55,2761.2,2760.5,3.62253]
[1740079282861,4.17164,2761.2,2760.7,3.62217]
[1740079283293,0.8247,2761.3,2760.7,0.72447]
[1740079283490,3.62181,2761.1,2760.6,3.6224]
[1740079283797,3.62181,2761.1,2760.4,4.272825]
[1740079283798,3.61913209,2761.1,2760.5,3.62253]
[1740079284160,3.62192,2761.0,2760.5,3.62253]
[1740079284360,7.24097209,2761.1,2760.5,3.62253]
[1740079284571,3.61913209,2761.1,2760.5,3.62253]
[1740079284777,7.24095209,2761.1,2760.5,4.4120655]
[1740079285862,3.62189,2761.0,2760.5,4.4120655]
[1740079286596,3.61913209,2761.1,2760.6,3.62239]
[1740079286900,3.61913209,2761.1,2760.6,3.62233]
[1740079287463,3.61913209,2761.1,2760.6,3.62231]
[1740079287683,3.61913209,2761.1,2760.7,0.44118455]
[1740079288087,3.61913209,2761.1,2760.7,4.06340455]
[1740079289514,0.8247,2761.3,2760.7,0.44118455]
[1740079289667,3.62126,2761.5,2761.0,3.62181]
[1740079290069,4.40241,2761.6,2761.0,3.62181]
[1740079290303,3.62135,2761.4,2761.0,3.62181]
[1740079290691,0.7812,2761.6,2761.2,3.62161]
[1740079290892,0.804,2761.9,2761.4,3.62123]
[1740079291091,4.42472,2761.9,2761.5,3.62114]
[1740079291400,0.804,2761.9,2761.4,3.62124]
[1740079291587,0.804,2761.9,2761.4,7.24251]
[1740079291781,0.804,2761.9,2761.5,3.62112]
[1740079291978,3.62039,2762.2,2761.8,3.62081]
[1740079292180,3.62039,2762.2,2761.6,3.62101]
[1740079292384,3.62045,2762.1,2761.6,3.62101]
[1740079293518,3.62067,2762.0,2761.5,0.87710556]
[1740079293665,3.62045,2762.1,2761.5,4.49823556]
[1740079293666,7.24099,2762.1,2761.5,4.49823556]
[1740079293870,3.62045,2762.1,2761.5,4.49823556]
[1740079294602,3.62045,2762.1,2761.6,3.62108]
[1740079294807,3.62045,2762.1,2761.6,4.20958875]
[1740079295005,3.62045,2762.1,2761.6,3.62108]
[1740079295221,0.7585,2762.0,2761.6,3.62106]
[1740079295410,0.7585,2762.0,2761.6,3.621]
[1740079296199,4.37914,2762.0,2761.4,4.41703]
[1740079296510,0.7585,2762.0,2761.5,3.62115]
[1740079296686,0.7585,2762.0,2761.5,4.52348756]
[1740079296870,0.7585,2762.0,2761.6,3.62108]
[1740079297070,0.7585,2762.0,2761.7,3.62093]
[1740079297305,0.7585,2762.0,2761.6,3.62108]
[1740079297509,3.62072,2761.9,2761.5,0.90233756]
[1740079297709,3.62092,2761.8,2761.3,0.98519561]
[1740079298011,3.62092,2761.8,2761.3,4.60659561]
[1740079298309,3.62072,2761.9,2761.4,3.62134]
[1740079298806,3.62072,2761.9,2761.4,3.62128]
[1740079299011,0.55,2761.9,2761.4,4.44405156]
[1740079299177,0.55,2761.9,2761.5,3.6211]
[1740079300181,4.17071,2761.9,2761.5,3.6211]
[1740079300676,0.55,2761.9,2761.5,3.62122]
[1740079300874,0.55,2761.9,2761.5,4.52628072]
[1740079301173,4.17077,2761.9,2761.5,0.90506072]
[1740079301379,4.17077,2761.9,2761.4,3.62132]
[1740079302080,0.55,2761.9,2761.4,3.62132]
[1740079302317,4.1707,2761.9,2761.4,3.62128]
[1740079302491,4.1707,2761.9,2761.5,3.6212]
[1740079303793,4.1707,2761.9,2761.4,3.62133]
[1740079303995,4.1707,2761.9,2761.4,4.345613]
[1740079304195,3.62091,2761.8,2761.4,0.724283]
[1740079304518,4.17071,2761.9,2761.4,4.345543]
[1740079304720,7.79152,2761.9,2761.4,4.345543]
[1740079304927,4.17071,2761.9,2761.5,3.62121]
[1740079305104,4.17071,2761.9,2761.4,4.345543]
[1740079305105,3.62091,2761.8,2761.4,0.724283]
[1740079305493,4.17071,2761.9,2761.5,0.4345753]
[1740079305997,3.62087,2761.8,2761.5,0.4345753]
[1740079306219,4.17071,2761.9,2761.4,3.62123]
[1740079306528,4.17071,2761.9,2761.5,3.62119]
[1740079306729,0.7585,2762.0,2761.4,0.8299]
[1740079306896,0.7553,2762.4,2761.6,7.00142607]
[1740079307229,9.73502,2762.7,2762.0,3.6205]
[1740079307436,9.73502,2762.7,2762.2,3.62029]
[1740079308318,0.55,2762.6,2762.2,3.62029]
[1740079308490,3.61978,2762.6,2762.1,3.62031]
[1740079309031,0.55,2762.5,2762.2,3.62028]
[1740079309918,0.55,2762.6,2762.2,7.24056]
[1740079310237,0.55,2762.6,2762.2,3.62028]
[1740079311215,4.1698,2762.6,2762.2,3.62028]
[1740079311411,0.55,2762.6,2762.3,3.62007]
[1740079311611,5.36,2762.7,2762.6,3.61977]
[1740079311811,0.7667,2763.0,2762.6,3.61977]
[1740079312218,3.61947,2762.9,2762.4,3.61996]
[1740079312431,0.55,2762.8,2762.2,3.62022]
[1740079312610,0.55,2762.8,2762.3,3.62007]
[1740079312611,4.16958,2762.8,2762.3,3.62007]
[1740079312810,7.78918,2762.8,2762.3,3.62007]
[1740079313006,4.16958,2762.8,2762.3,3.62007]
[1740079313621,7.78918,2762.8,2762.2,7.24043]
[1740079314018,7.78918,2762.8,2762.1,3.62034]
[1740079314019,3.61951,2762.8,2762.1,3.62034]
[1740079314223,4.16975,2762.7,2762.0,4.68534]
[1740079314441,4.16975,2762.7,2762.2,3.62028]
[1740079314624,4.16975,2762.7,2762.0,4.68534]
[1740079314944,0.7914,2762.3,2761.8,4.35062688]
[1740079315146,0.7914,2762.6,2762.1,3.62034]
[1740079315448,0.7914,2762.6,2762.2,3.62021]
[1740079315743,4.41124,2762.6,2762.1,7.24069]
[1740079315916,4.41124,2762.6,2762.2,3.62029]
[1740079315917,0.7914,2762.6,2762.2,3.62029]
[1740079316122,0.7914,2762.6,2762.1,3.62034]
[1740079316324,0.7914,2762.6,2762.2,3.62025]
[1740079317344,0.7914,2762.6,2762.1,3.62034]
[1740079317546,0.55,2762.5,2762.0,3.62049]
[1740079317936,0.55,2762.5,2762.1,3.62034]
[1740079318135,0.55,2762.5,2762.0,7.24096]
[1740079318327,0.55,2762.5,2762.1,3.62036]
[1740079319048,0.7914,2762.6,2762.3,3.62009]
[1740079319545,0.55,2762.7,2762.4,3.62003]
[1740079319865,0.55,2762.7,2762.3,3.62009]
[1740079320224,0.55,2762.7,2762.5,0.0992]
[1740079321045,0.55,2762.8,2762.5,0.0992]
[1740079321250,3.61977,2762.6,2762.5,0.0992]
[1740079321452,4.16964,2762.8,2762.5,0.0992]
[1740079321948,0.55,2762.6,2762.5,0.0992]
[1740079322125,4.16977,2762.6,2762.5,0.0992]
[1740079322542,0.55,2762.7,2762.5,0.0992]
[1740079323620,0.55,2762.8,2762.5,0.0992]
[1740079324033,4.16954,2762.8,2762.5,0.0992]
[1740079324548,0.55,2762.6,2762.5,0.0992]
[1740079324716,0.55,2762.7,2762.5,0.0992]
[1740079325757,4.16965,2762.7,2762.5,0.0992]
[1740079326055,0.55,2762.8,2762.5,0.0992]
[1740079326221,4.16959,2762.8,2762.5,0.0992]
[1740079328158,0.55,2762.6,2762.5,0.0992]
[1740079329835,0.55,2762.8,2762.5,0.0992]
[1740079330016,0.55,2762.7,2762.5,0.0992]
[1740079334453,0.55,2762.8,2762.5,0.0992]
[1740079334856,5.36,2763.0,2762.5,7.09934607]
[1740079335065,8.97928,2763.0,2762.5,3.719]
[1740079335221,4.16938,2762.9,2762.5,0.0992]
[1740079335577,0.55,2762.8,2762.5,0.0992]
[1740079335858,6.695091,2763.0,2762.5,0.0992]
[1740079336074,3.61939,2762.9,2762.5,0.0992]
[1740079336282,0.55,2762.7,2762.5,0.0992]
[1740079336994,4.92555,2762.7,2762.5,0.0992]
[1740079337266,2.160406,2762.7,2762.5,0.0992]
[1740079337559,1.3059,2762.7,2762.5,0.0992]
[1740079338463,0.55,2762.6,2762.5,0.0992]
[1740079340158,11.118741,2763.0,2762.5,0.0992]
[1740079340159,6.1643,2763.0,2762.5,0.0992]
[1740079340358,6.1643,2763.0,2762.6,3.61975]
[1740079340562,0.005,2763.3,2762.6,5.174829]
[1740079340742,0.005,2763.3,2763.0,3.61916]
[1740079341428,0.555,2763.3,2762.7,3.61956]
[1740079341764,0.555,2763.3,2762.8,3.61947]
[1740079341961,0.005,2763.3,2762.9,3.61938]
[1740079342160,0.005,2763.3,2763.2,4.41009]
[1740079343066,0.005,2763.3,2763.2,4.86222853]
[1740079344344,0.005,2763.3,2763.2,4.59493873]
[1740079344727,0.005,2763.3,2763.2,4.41009]
[1740079349169,0.005,2763.3,2763.2,0.7911]
[1740079349472,0.005,2763.3,2763.2,1.3442773]
[1740079350379,0.005,2763.3,2763.2,4.9632673]
[1740079350750,0.005,2763.3,2763.2,1.3442773]
[1740079351145,0.005,2763.3,2763.2,4.9632673]
[1740079352577,0.005,2763.3,2763.2,0.7911]
[1740079352742,0.005,2763.3,2763.2,4.41009]
[1740079358772,0.774,2764.4,2764.1,3.61775]
[1740079358967,0.774,2765.0,2764.3,3.38034607]
[1740079359175,0.774,2765.0,2764.7,3.61701]
[1740079359470,0.774,2765.0,2764.5,3.61717]
[1740079359666,0.774,2765.0,2764.3,3.71838068]
[1740079359868,0.1493626,2765.1,2764.3,3.71838068]
[1740079359869,0.1493626,2765.1,2764.8,3.61682]
[1740079360054,0.1493626,2765.1,2764.7,4.3979]
[1740079360255,0.1493626,2765.1,2764.7,1.58662461]
[1740079360578,3.61701,2764.8,2764.6,0.278]
[1740079360882,3.61718,2764.6,2764.0,0.278]
[1740079361209,3.61718,2764.6,2764.1,3.6178]
[1740079361369,3.61697,2764.8,2764.1,3.6178]
[1740079361551,0.7745,2765.0,2764.4,3.61739]
[1740079361552,4.3912,2765.0,2764.4,3.61739]
[1740079361946,4.39122,2765.0,2764.3,3.38034607]
[1740079362191,3.61697,2764.8,2764.3,3.38034607]
[1740079362488,4.39122,2765.0,2764.5,3.61727]
[1740079362688,0.1493626,2765.1,2764.6,3.61709]
[1740079363391,3.7658826,2765.1,2764.5,5.58598919]
[1740079363596,0.1493626,2765.1,2764.6,3.61715]
[1740079363801,0.1493626,2765.1,2764.5,1.23912853]
[1740079363993,3.61664,2765.0,2764.5,1.23912853]
[1740079364195,0.1493626,2765.1,2764.5,1.23912853]
[1740079364699,3.7658926,2765.1,2764.5,4.85636853]
[1740079365099,0.1493626,2765.1,2764.5,1.23912853]
[1740079365294,3.61676,2765.0,2764.5,4.85639853]
[1740079365683,3.61663,2765.0,2764.5,0.7646]
[1740079365887,3.61703,2764.7,2764.2,4.15144607]
[1740079366064,3.61691,2764.8,2764.3,3.61753]
[1740079366797,3.6168,2764.9,2764.2,4.15144607]
[1740079367094,3.61704,2764.7,2764.2,0.7711]
[1740079367294,3.61732,2764.5,2764.1,0.98593509]
[1740079367495,3.61732,2764.5,2764.1,0.70793509]
[1740079367698,3.61763,2764.3,2763.9,4.15654607]
[1740079367864,3.61763,2764.3,2763.9,3.38034607]
[1740079368269,3.61738,2764.5,2763.9,3.38034607]
[1740079368469,3.61738,2764.5,2764.0,3.61793]
[1740079369079,3.61738,2764.5,2764.0,7.23586]
[1740079369274,3.6171,2764.7,2764.0,7.23586]
[1740079369275,3.61717,2764.6,2764.1,3.61773]
[1740079370000,3.61703,2764.7,2764.2,3.61766]
[1740079370167,3.61703,2764.7,2764.0,3.61785]
[1740079370168,3.61733,2764.5,2764.0,3.61785]
[1740079370367,1.337439,2764.7,2764.1,0.8314]
[1740079370594,3.61723,2764.6,2764.1,4.44912]
[1740079370783,4.37274,2764.8,2764.3,3.61743]
[1740079370984,3.61706,2764.7,2764.2,6.99802607]
[1740079371302,3.61706,2764.7,2764.2,3.38034607]
[1740079371887,3.61694,2764.8,2764.2,6.99796607]
[1740079372091,5.36,2764.9,2764.3,3.61752]
[1740079372291,3.61685,2764.9,2764.4,3.61735]
[1740079372610,0.7554,2765.0,2764.6,3.61707]
[1740079372903,4.37207,2765.0,2764.4,3.61729]
[1740079373400,4.37207,2765.0,2764.4,3.61731]
[1740079373805,3.61678,2764.9,2764.4,3.61731]
[1740079374104,0.7554,2765.0,2764.3,3.61755]
[1740079374305,3.61683,2764.9,2764.3,7.23501]
[1740079374803,3.61716,2764.6,2764.1,4.44919]
[1740079374980,3.61716,2764.6,2763.9,3.38034607]
[1740079374981,4.06893926,2764.9,2763.9,3.38034607]
[1740079375313,4.06893926,2764.9,2763.9,6.99835607]
[1740079375314,4.3729,2764.4,2763.9,6.99835607]
[1740079375689,4.3729,2764.4,2763.9,10.61633607]
[1740079376002,4.3729,2764.4,2764.0,3.61793]
[1740079377105,4.3729,2764.4,2763.9,3.38034607]
[1740079377308,3.61763,2764.3,2763.9,3.38034607]
[1740079377877,7.99044,2764.4,2763.9,3.38034607]
[1740079378073,7.99044,2764.4,2763.9,6.99841607]
[1740079378273,3.61776,2764.2,2763.7,4.32547326]
[1740079378594,3.61769,2764.2,2763.6,6.99870607]
[1740079378909,3.61769,2764.2,2763.7,3.61826]
[1740079379206,3.61755,2764.3,2763.6,3.38034607]
[1740079379207,3.61782,2764.1,2763.6,3.38034607]
[1740079379393,3.61765,2764.3,2763.3,7.75681607]
[1740079379394,0.55,2764.3,2763.3,7.75681607]
[1740079379571,4.41635,2763.8,2763.3,4.41404607]
[1740079379778,4.41635,2763.8,2763.3,4.65255]
[1740079379982,8.03467,2763.8,2763.3,3.89485]
[1740079380187,3.6184,2763.7,2763.3,0.276]
[1740079380386,3.61854,2763.6,2763.3,0.276]
[1740079381000,4.4164,2763.8,2763.3,0.276]
[1740079381395,3.61834,2763.7,2763.3,0.276]
[1740079381598,4.41639,2763.8,2763.3,3.89485]
[1740079381907,4.41639,2763.8,2763.3,3.89478]
[1740079382310,8.03471,2763.8,2763.3,3.89478]
[1740079382506,4.41639,2763.8,2763.3,3.89478]
[1740079382892,4.41639,2763.8,2763.4,3.61872]
[1740079383500,6.1697,2764.1,2763.6,0.7898]
[1740079383702,5.36,2764.1,2763.7,3.61833]
[1740079383878,5.36,2764.1,2763.7,3.61825]
[1740079384074,5.36,2764.1,2763.8,3.61811]
[1740079384310,5.36,2764.1,2763.9,3.618]
[1740079384608,0.8097,2764.4,2764.0,3.61794]
[1740079384807,0.8097,2764.4,2763.9,3.618]
[1740079385011,0.7798,2764.7,2763.8,0.802616]
[1740079385181,4.5457426,2765.1,2764.0,0.753]
[1740079385383,0.9291626,2765.1,2764.6,3.61709]
[1740079386080,0.9291626,2765.1,2764.5,0.753]
[1740079386081,3.61677,2764.9,2764.4,3.61733]
[1740079386480,3.61665,2765.0,2764.4,3.61733]
[1740079386711,0.9291626,2765.1,2764.3,3.61755]
[1740079386911,0.9291626,2765.1,2764.4,0.77508961]
[1740079387299,0.9291626,2765.1,2764.5,3.38034607]
[1740079387509,3.7659726,2765.1,2764.5,6.99754607]
[1740079387708,3.7659726,2765.1,2764.5,3.6172]
[1740079388028,3.61667,2765.0,2764.5,7.23441]
[1740079388225,0.1493626,2765.1,2764.6,3.61707]
[1740079388390,0.1493626,2765.1,2764.7,3.6169]
[1740079388595,0.1493626,2765.1,2764.6,3.61711]
[1740079388798,3.61675,2765.0,2764.4,0.77508961]
[1740079389014,3.61673,2765.0,2764.4,0.77508961]
[1740079389324,0.1493626,2765.1,2764.2,4.13334607]
[1740079389530,0.1493626,2765.1,2764.7,3.61695]
[1740079389694,0.1493626,2765.1,2764.2,7.75097607]
[1740079389895,0.1493626,2765.1,2764.7,3.61691]
[1740079390229,0.1493626,2765.1,2764.5,7.23441]
[1740079390551,0.1493626,2765.1,2764.7,3.61695]
[1740079390742,0.1493626,2765.1,2764.6,0.723441]
[1740079391045,3.7659326,2765.1,2764.6,4.340551]
[1740079391210,0.8207,2764.9,2764.3,3.61748]
[1740079391723,3.61703,2764.7,2764.2,1.029]
[1740079391923,3.61698,2764.8,2764.3,3.61752]
[1740079392241,3.61724,2764.6,2764.2,0.276]
[1740079392549,3.6171,2764.7,2764.2,0.276]
[1740079392740,0.8207,2764.9,2764.5,3.61728]
[1740079393527,0.55,2764.8,2764.1,0.41333461]
[1740079393776,3.61735,2764.5,2764.1,0.276]
[1740079394235,3.61711,2764.7,2764.1,0.276]
[1740079394524,3.61722,2764.6,2764.1,3.89379]
[1740079394727,3.61711,2764.7,2764.1,3.89379]
[1740079394728,3.61711,2764.7,2764.2,3.61766]
[1740079395298,5.36,2764.8,2764.1,4.72121]
[1740079395498,3.7659226,2765.1,2764.1,4.72121]
[1740079395499,3.7658826,2765.1,2764.3,0.7947]
[1740079395699,3.61672,2765.0,2764.4,3.61735]
[1740079396002,7.3825126,2765.1,2764.5,3.61726]
[1740079396429,3.61664,2765.0,2764.5,3.61726]
[1740079396808,0.1493626,2765.1,2764.8,3.61677]
[1740079397137,0.1493626,2765.1,2764.7,3.61695]
[1740079397814,0.1493626,2765.1,2764.8,3.61679]
[1740079398123,0.1493626,2765.1,2765.0,3.61663]
[1740079398309,0.1493626,2765.1,2764.8,3.61689]
[1740079398708,0.1493626,2765.1,2764.9,3.61673]
[1740079398923,0.1493626,2765.1,2765.0,3.978303]
[1740079399160,0.1493626,2765.1,2765.0,0.361673]
[1740079400447,0.1493626,2765.1,2765.0,3.978303]
[1740079401559,0.1493626,2765.1,2765.0,0.361673]
[1740079401762,0.1493626,2765.1,2764.8,4.39182]
[1740079401965,0.1493626,2765.1,2764.9,3.61674]
[1740079402573,0.1493626,2765.1,2764.8,4.39182]
[1740079402930,0.1493626,2765.1,2764.9,3.61671]
[1740079403138,0.1493626,2765.1,2764.7,0.723417]
[1740079403344,0.7774,2765.0,2764.6,3.61706]
[1740079403661,4.39407,2765.0,2764.6,3.61706]
[1740079403863,0.7774,2765.0,2764.4,5.27]
[1740079404062,4.39414,2765.0,2764.5,3.61721]
[1740079404250,0.7774,2765.0,2764.5,3.61721]
[1740079404458,0.7774,2765.0,2764.4,3.61733]
[1740079405467,0.7774,2765.0,2764.5,3.61723]
[1740079405767,0.7774,2765.0,2764.4,3.61733]
[1740079405948,0.1493626,2765.1,2764.3,3.90819268]
[1740079405949,0.1493626,2765.1,2764.8,3.61689]
[1740079406356,0.1493626,2765.1,2764.6,3.61706]
[1740079407086,0.1493626,2765.1,2764.5,4.39351066]
[1740079407288,0.1493626,2765.1,2764.7,3.61701]
[1740079407798,0.1493626,2765.1,2764.8,3.61681]
[1740079408278,0.1493626,2765.1,2764.5,4.39342066]
[1740079408279,0.1493626,2765.1,2764.7,0.8243]
[1740079408478,0.1493626,2765.1,2764.8,3.61679]
[1740079408680,0.1493626,2765.1,2764.9,3.61667]
[1740079412188,0.1493626,2765.1,2764.9,3.61669]
[1740079412396,0.1493626,2765.1,2765.0,3.61663]
[1740079412610,0.1493626,2765.1,2764.5,3.61721]
[1740079412780,0.8292,2765.0,2764.5,3.61721]
[1740079413093,3.61683,2764.9,2764.4,8.88735]
[1740079413298,3.61683,2764.9,2764.2,4.67997]
[1740079413524,3.61722,2764.6,2764.0,3.61787]
[1740079413700,0.8101,2764.5,2764.0,3.61787]
[1740079413954,4.42741,2764.5,2764.0,3.61787]
[1740079414152,3.61742,2764.4,2763.8,3.61812]
[1740079414443,3.61742,2764.4,2763.7,0.275]
[1740079414444,3.61766,2764.3,2763.7,0.275]
[1740079414744,3.61766,2764.3,2763.7,3.89325]
[1740079414943,3.61742,2764.4,2763.8,3.61808]
[1740079415339,3.61757,2764.3,2763.7,0.45970962]
[1740079415539,3.61757,2764.3,2763.8,3.61819]
[1740079415737,0.55,2764.4,2763.8,3.61819]
[1740079415946,1.252841,2764.5,2763.7,0.45970962]
[1740079415947,0.8101,2764.5,2764.1,3.61768]
[1740079416548,0.8101,2764.5,2764.1,4.341254]
[1740079417552,0.8101,2764.5,2764.2,3.61757]
[1740079417956,0.8101,2764.5,2764.1,4.341254]
[1740079418454,0.8101,2764.5,2763.9,3.61801]
[1740079418627,3.61743,2764.4,2763.7,3.61831]
[1740079418835,0.7983,2764.2,2763.7,3.61825]
[1740079419422,3.61781,2764.1,2763.6,0.275]
[1740079419656,3.61795,2764.0,2763.6,0.751206]
[1740079419857,3.61795,2764.0,2763.5,3.61852]
[1740079420245,3.61781,2764.1,2763.5,3.61852]
[1740079421258,3.61815,2763.9,2763.4,0.275]
[1740079421454,0.7983,2764.2,2763.3,0.73741964]
[1740079421455,0.8121,2763.8,2763.3,0.73741964]
[1740079421624,3.61833,2763.7,2763.2,3.61892]
[1740079421954,3.61833,2763.7,2763.1,3.61899]
[1740079422155,8.97771,2764.2,2762.8,4.43039]
[1740079422156,0.7681,2763.4,2762.8,4.43039]
[1740079422455,0.7681,2763.4,2762.9,3.61931]
[1740079422840,0.7681,2763.4,2763.0,3.61918]
[1740079423253,0.7681,2763.4,2762.9,3.61931]
[1740079423571,4.38693,2763.4,2762.9,3.981241]
[1740079424283,4.38693,2763.4,2762.9,7.600541]
[1740079424434,4.38693,2763.4,2762.9,3.981231]
[1740079424761,0.7681,2763.4,2762.9,3.981231]
[1740079424965,0.7681,2763.4,2762.9,7.600521]
[1740079425167,0.7681,2763.4,2763.0,0.7600521]
[1740079426082,4.38684,2763.4,2763.0,0.7600521]
[1740079426434,3.6189,2763.3,2763.0,0.7600521]
[1740079426640,3.6189,2763.3,2762.9,3.981301]
[1740079427968,0.7681,2763.4,2762.9,3.981301]
[1740079428175,4.38689,2763.4,2762.9,3.981301]
[1740079428353,3.61892,2763.3,2762.7,3.61955]
[1740079428553,3.61906,2763.2,2762.7,3.61955]
[1740079430942,3.61892,2763.3,2762.8,3.61943]
[1740079430943,7.23788,2763.3,2762.8,3.61943]
[1740079431175,3.61901,2763.2,2762.7,3.61953]
[1740079431382,3.61912,2763.1,2762.7,3.61953]
[1740079431575,3.61936,2763.0,2762.5,3.7191]
[1740079431759,3.61952,2762.8,2762.5,0.0992]
[1740079431960,7.23912,2762.8,2762.5,0.0992]
[1740079432165,3.61952,2762.8,2762.5,0.0992]
[1740079432941,0.7765,2762.6,2762.5,0.0992]
[1740079434250,5.36,2762.9,2762.5,0.0992]
[1740079434450,6.1496,2762.9,2762.6,3.38034607]
[1740079434671,5.36,2762.9,2762.7,3.61954]
[1740079434865,5.36,2762.9,2762.6,3.61974]
[1740079435059,5.36,2762.9,2762.5,3.7191]
[1740079435462,5.36,2762.9,2762.6,3.61976]
[1740079435788,5.36,2762.9,2762.5,0.0992]
[1740079435789,8.97941,2762.9,2762.5,0.0992]
[1740079436584,8.97941,2762.9,2762.5,3.71909]
[1740079436767,5.36,2762.9,2762.5,3.71909]
[1740079437373,5.36,2762.9,2762.5,1.17115261]
[1740079437556,5.36,2762.9,2762.8,3.61951]
[1740079437760,5.36,2764.1,2763.9,3.61795]
[1740079438088,0.82,2764.5,2763.6,0.8189]
[1740079438294,0.82,2764.5,2763.7,3.61833]
[1740079438589,3.61751,2764.4,2763.7,3.61833]
[1740079438786,4.43738,2764.5,2763.7,3.61833]
[1740079438994,3.61756,2764.3,2763.7,3.61831]
[1740079439181,3.61783,2764.1,2763.5,7.51702]
[1740079439558,4.804246,2764.2,2763.6,3.61838]
[1740079439759,4.804246,2764.2,2763.6,3.61846]
[1740079439960,4.804246,2764.2,2763.5,3.89851]
[1740079440188,4.804246,2764.2,2763.6,3.61846]
[1740079440387,3.61782,2764.1,2763.6,3.61845]
[1740079440592,1.186556,2764.2,2763.6,3.61845]
[1740079440793,4.804256,2764.2,2763.6,3.61845]
[1740079441159,3.61781,2764.1,2763.4,3.89868]
[1740079441359,3.61781,2764.1,2763.5,3.61859]
[1740079441596,3.61781,2764.1,2763.4,3.89868]
[1740079441893,3.61781,2764.1,2763.4,7.51731]
[1740079442187,1.186556,2764.2,2763.4,0.28]
[1740079442390,0.7919,2764.7,2763.9,3.38034607]
[1740079442595,0.7919,2764.7,2764.3,3.61751]
[1740079442760,0.7919,2764.5,2763.8,3.89815]
[1740079442961,4.058355,2764.4,2763.8,3.89811]
[1740079443386,0.440905,2764.4,2763.9,3.61798]
[1740079443790,4.40932,2764.5,2763.9,3.61798]
[1740079446296,0.7919,2764.5,2763.9,3.61798]
[1740079446600,3.61743,2764.4,2763.9,3.61798]
[1740079448095,3.61743,2764.4,2763.8,0.28]
[1740079448304,3.61762,2764.3,2763.8,0.28]
[1740079448508,3.61762,2764.3,2763.5,3.6185]
[1740079448509,1.338695,2764.3,2763.5,3.6185]
[1740079448668,3.61788,2764.1,2763.5,3.6185]
[1740079448869,3.61788,2764.1,2763.3,1.49109401]
[1740079448870,4.16789,2764.1,2763.3,4.62199401]
[1740079449071,3.61815,2763.9,2763.3,4.34299401]
[1740079449570,4.43457,2763.7,2763.1,8.474925]
[1740079449870,0.8162,2763.7,2763.2,0.279]
[1740079450070,0.8162,2763.7,2763.3,3.61877]
[1740079450801,0.8162,2763.7,2763.2,3.89796]
[1740079451104,0.8162,2763.7,2763.3,3.61884]
[1740079452579,0.8162,2763.7,2763.3,3.61883]
[1740079452785,0.8162,2763.7,2763.1,3.61899]